lending/lending_fUSD_20240810
["ID","MTS","AMOUNT","RATE_DAILY","PERIOD"]
[334593936,1723288239857,-532.21011992,0.00012924,2]
[334593937,1723288239867,-532.21011992,0.00012924,2]
[334593939,1723288239877,-686.91534467,0.00012928,2]
[334593941,1723288239887,-686.91534467,0.00012928,2]
[334593943,1723288239896,-300.0,0.00013,2]
[334593945,1723288239905,-400.0,0.00013154,2]
[334593947,1723288239915,-600.0,0.00013289,2]
[334593949,1723288239924,-270.54243034,0.00013303,2]
[334593951,1723288239934,-270.54243034,0.00013303,2]
[334593953,1723288239943,-179.97400787,0.00013303,2]
[334593955,1723288239952,-466.83255127,0.0001331,2]
[334593957,1723288239962,-77.04378104,0.00013378,2]
[334593960,1723288239985,-133.9874308,0.00013378,2]
[334593962,1723288239994,-601.01,0.00013388,2]
[334593964,1723288240003,-601.01,0.00013388,2]
[334593966,1723288240012,-601.01,0.00013388,2]
[334593968,1723288240021,-601.01,0.00013388,2]
[334593970,1723288240030,-601.01,0.00013388,2]
[334593972,1723288240039,-601.01,0.00013388,2]
[334593974,1723288240048,-601.01,0.00013388,2]
[334593976,1723288240058,-601.01,0.00013388,2]
[334593978,1723288240067,-601.01,0.00013388,2]
[334593980,1723288240076,-601.01,0.00013388,2]
[334593982,1723288240086,-601.01,0.00013388,2]
[334593984,1723288240095,-601.01,0.00013388,2]
[334593986,1723288240104,-48596.11570014,0.00013398,2]
[334593987,1723288240114,-48596.11570014,0.00013398,2]
[334593989,1723288240124,-587.0,0.00013406,2]
[334593992,1723288240133,-400.0,0.00013451,2]
[334593993,1723288240143,-19006.35470134,0.00013483,2]
[334593995,1723288240151,-155.0,0.00013483,2]
[334593997,1723288240160,-328.20287838,0.0001351,2]
[334593999,1723288240170,-35722.43931546,0.0001351,2]
[334594002,1723288240179,-1764.39130092,0.0001357,2]
[334594004,1723288240189,-155.0,0.00013579,2]
[334594006,1723288240198,-9269.56154788,0.00013579,2]
[334594008,1723288240207,-791.02282829,0.0001367,2]
[334594010,1723288240217,-791.02282829,0.0001367,2]
[334594012,1723288240227,-10532.64512729,0.00013698,2]
[334594013,1723288240236,-4494.22555599,0.00013698,2]
[334594015,1723288240245,-15480.914227,0.00013698,2]
[334594017,1723288240255,-10532.64512729,0.00013698,2]
[334594019,1723288240264,-200.0,0.00013699,2]
[334594021,1723288240273,-2751.0,0.00013699,2]
[334594023,1723288240282,-500.0,0.00013699,2]
[334594025,1723288240291,-339.45,0.00013699,2]
[334594027,1723288240301,-4802.70974637,0.00013699,2]
[334594029,1723288240311,-7637.43002742,0.00013699,2]
[334594031,1723288240320,-4802.70974637,0.00013699,2]
[334594033,1723288240329,-7637.43002742,0.00013699,2]
[334594035,1723288240338,-176.66,0.00013711,2]
[334594037,1723288240347,-3031.93569449,0.0001372,2]
[334594039,1723288240356,-382.2724777,0.00013779,2]
[334594041,1723288240365,-10370.44418326,0.00013799,2]
[334594043,1723288240374,-500.0,0.00013858,2]
[334594045,1723288240383,-500.0,0.00013858,2]
[334594047,1723288240392,-210.97718399,0.00013858,2]
[334594049,1723288240401,-91577.13456618,0.00013859,2]
[334594051,1723288240412,-1411.04787166,0.00013859,2]
[334594053,1723288240423,-263.12,0.00013859,2]
[334594058,1723288240463,-600.0,0.00012,2]
[334594060,1723288240471,-601.01,0.00013388,2]
[334594061,1723288240481,-1750.7097915,0.00013859,2]
[334594263,1723288245572,-522.39307971,0.00011525,2]
[334594269,1723289264618,363.97,9.749e-05,2]
[334594270,1723289302276,264.51,9.013e-05,2]
[334594272,1723289338764,227.7293364,9.013e-05,2]
[334594293,1723289432702,-2079.331063,0.00010348,2]
[334594294,1723289432712,-300.0,0.000104,3]
[334594295,1723289432721,-531.56136858,0.000105,3]
[334594296,1723289432731,-168.43863142,0.000105,3]
[334594297,1723289432741,-583.91168614,0.000106,3]
[334594304,1723289438424,-416.08831386,0.000106,3]
[334594305,1723289438434,-1400.0,0.000107,3]
[334594306,1723289438443,-1700.0,0.000108,3]
[334594307,1723289438453,-300.0,0.00010899,2]
[334594308,1723289438462,-300.0,0.000109,3]
[334594309,1723289438471,-1573.76763892,0.000109,2]
[334594310,1723289438504,-1077.79689775,0.000109,2]
[334594311,1723289438513,-348.6050707,0.000109,2]
[334594312,1723289438523,-157.39258195,0.000109,2]
[334594313,1723289438532,-535.30790798,0.000109,2]
[334594314,1723289438541,-422.58409052,0.000109,2]
[334594315,1723289438551,-155.0,0.00010925,2]
[334594316,1723289438560,-25981.70183562,0.00011,2]
[334594317,1723289438579,-13929.74214198,0.00011,2]
[334594318,1723289438590,-2077.87520853,0.00011,2]
[334594319,1723289438622,-182903.86911684,0.00011,2]
[334594320,1723289438686,-544.01346895,0.00011,2]
[334594321,1723289438699,-1111.14398307,0.00011,2]
[334594322,1723289438755,-682.8969743,0.00011,2]
[334594328,1723289439905,-124186.24102815,0.00011,2]
[334594329,1723289440003,-1238.93824482,0.00011,2]
[334594330,1723289440015,-592.747508,0.00011,2]
[334594331,1723289440198,-5005.93905,0.00011,2]
[334594433,1723289445923,-855.65800931,0.00011,2]
[334594434,1723289446071,-385.0,0.00010999,2]
[334594435,1723289446081,-5.67842279,0.00011,2]
[334594436,1723289446236,-4545.31242003,0.00011,2]
[334594437,1723289446247,-264.56933083,0.00011,2]
[334594438,1723289446260,-3212.81595253,0.00011,2]
[334594439,1723289446272,-2584.80322748,0.00011,2]
[334594446,1723289519137,1992.23,0.0001,2]
[334594447,1723289559961,299.9361353,0.0001,2]
[334594448,1723289576382,181.72686147,0.0001,2]
[334594449,1723289586977,1050.50799183,0.0001,2]
[334594450,1723289587125,314.49318533,0.0001,2]
[334594451,1723289591973,1453.40195947,0.0001,2]
[334594452,1723289624983,177.73314642,0.0001,2]
[334594453,1723289656956,854.38532162,0.0001,2]
[334594454,1723289777863,495.48,8.949e-05,2]
[334594455,1723290066686,550.0,0.0001,2]
[334594462,1723290346218,470.7,8.219e-05,2]
[334594465,1723290396595,175.94570773,9.948e-05,2]
[334594466,1723290401754,249.138841,9.962e-05,2]
[334594475,1723290631781,-1000.0,0.00010035,2]
[334594476,1723290631791,-250.0,0.00010042,2]
[334594477,1723290631800,-4186.18,0.00010042,2]
[334594478,1723290631812,-300.0,0.00010047,2]
[334594479,1723290631822,-10000.0,0.00010048,2]
[334594480,1723290631831,-269.44,0.00010048,2]
[334594481,1723290631840,-23880.0,0.00010066,2]
[334594482,1723290631850,-824.37,0.00010101,2]
[334594483,1723290631859,-3290.48,0.00010111,2]
[334594484,1723290631874,-200.0,0.00010127,2]
[334594485,1723290631883,-1462.11,0.00010178,2]
[334594486,1723290631892,-150.0,0.00010246,2]
[334594487,1723290631902,-3159.52,0.00010247,2]
[334594488,1723290631912,-499.99,0.00010378,2]
[334594489,1723290631921,-470.7,0.00010479,2]
[334594490,1723290631931,-178.44,0.00010594,2]
[334594491,1723290631940,-1775.40857222,0.00010847,2]
[334594492,1723290631949,-155.0,0.00010847,2]
[334594493,1723290631958,-4003.8534,0.000109,2]
[334594494,1723290631968,-7476.2555,0.000109,2]
[334594495,1723290631977,-5130.0,0.000109,2]
[334594496,1723290631987,-2386.40808303,0.000109,2]
[334594497,1723290631995,-9131.85570614,0.000109,2]
[334594498,1723290632005,-155.4786783,0.00010925,2]
[334594499,1723290632014,-155.11702179,0.00010925,2]
[334594500,1723290632023,-1480.47,0.00010959,2]
[334594501,1723290632033,-250.0,0.00010959,2]
[334594502,1723290632042,-670.98,0.00010959,2]
[334594503,1723290632051,-198696.12019259,0.00011,2]
[334594504,1723290632083,2210.70512857,0.0001,2]
[334594505,1723290632120,-265.93104365,0.00011,2]
[334594506,1723290632138,-6165.47971103,0.00011,2]
[334594507,1723290632153,-1006.53873054,0.00011,2]
[334594508,1723290632168,-183872.23716031,0.00011,2]
[334594509,1723290632179,-78074.63091816,0.00011,2]
[334594510,1723290634255,201.58208114,0.00027,120]
[334594557,1723290639920,-281.722727,0.000109,2]
[334594558,1723290639930,-157.39258195,0.000109,2]
[334594559,1723290639939,-10250.46587343,0.00011,2]
[334594560,1723290640080,-409.01825744,0.00011,2]
[334594601,1723290642804,-5768.03301831,0.00011,2]
[334594603,1723290642817,-323.9163485,0.00011,2]
[334594606,1723290643758,-354.43336101,0.00011,2]
[334594607,1723290643775,-400.30481951,0.00011,2]
[334594608,1723290643787,-500.0,0.00011,2]
[334594609,1723290645862,-498.62,0.00011,2]
[334594610,1723290645919,-500.0,0.00011,2]
[334594611,1723290645975,-660.99999999,0.00011,2]
[334594612,1723290646030,-348.83286597,0.00011,2]
[334594613,1723290646087,-7056.8,0.00011,2]
[334594614,1723290646101,-2091.0265999,0.00011,2]
[334594615,1723290646200,-635.84286283,0.00011,2]
[334594620,1723290819922,155.48,8.523e-05,2]
[334594621,1723290842855,636.74,8.854e-05,2]
[334594623,1723291247233,1000.0,0.00025,60]
[334594624,1723291398203,298.00459826,8.382e-05,2]
[334594625,1723291398226,306.89540174,8.382e-05,2]
[334594627,1723291516998,151.32101212,9.888e-05,2]
[334594642,1723291831960,-155.03735797,0.0001016,2]
[334594643,1723291831971,-155.0,0.0001016,2]
[334594644,1723291831982,-200.0,0.0001018,2]
[334594645,1723291831994,-800.0,0.00010203,2]
[334594646,1723291832004,-150.0,0.00010249,2]
[334594647,1723291832015,-300.0,0.00010249,2]
[334594648,1723291832025,-300.0,0.00010249,2]
[334594649,1723291832036,-4817.25972046,0.00010249,2]
[334594650,1723291832046,-250.0,0.0001025,2]
[334594651,1723291832057,-23842.55,0.0001025,2]
[334594652,1723291832067,-10000.0,0.0001028,2]
[334594653,1723291832078,-604.9,0.00010646,2]
[334594654,1723291832088,-400.0,0.00010651,2]
[334594655,1723291832099,-155.15237423,0.00010732,2]
[334594656,1723291832110,-155.0,0.00010732,2]
[334594657,1723291832120,-225.31560594,0.00010732,2]
[334594658,1723291832132,-1257.03046369,0.00010732,2]
[334594659,1723291832143,-150.99,0.00010732,2]
[334594660,1723291832153,-499.99,0.00010732,2]
[334594661,1723291832164,-159.12,0.00010751,2]
[334594662,1723291832175,-21121.5805,0.000109,2]
[334594663,1723291832186,-5949.27,0.000109,2]
[334594664,1723291832196,-351.72445436,0.000109,2]
[334594665,1723291832208,-988.011,0.00011,2]
[334594666,1723291832218,-37124.9585836,0.00011,2]
[334594667,1723291832236,-1800.0,0.00011,2]
[334594668,1723291832248,-4819.72288881,0.00011,2]
[334594669,1723291832265,-4843.30926104,0.00011,2]
[334594670,1723291832278,-273763.4683759,0.00011,2]
[334594678,1723291838082,-1544.59791416,0.00011,2]
[334594679,1723291838188,-1014.6173005,0.00011,2]
[334594680,1723291838242,-777.16020434,0.00011,2]
[334594681,1723291838452,-1466.43431141,0.00011,2]
[334594682,1723291838467,-1080.68345125,0.00011,2]
[334594693,1723291840074,-701.66503495,0.00011,2]
[334594694,1723291840085,-1209.49724686,0.00011,2]
[334594695,1723291840127,-1765.19999999,0.00011,2]
[334594696,1723291840232,-300.0,0.00011,2]
[334594697,1723291840287,-260.03566454,0.00011,2]
[334594698,1723291840298,-263.80999999,0.00011,2]
[334594699,1723291840392,-2015.94855758,0.00011,2]
[334594733,1723291843013,-823.52658831,0.00011,2]
[334594741,1723291843998,-895.88804481,0.00011,2]
[334594746,1723291846216,-187.81515134,0.000109,2]
[334594747,1723291846226,-506.06241036,0.00011,2]
[334594748,1723291846318,-6751.79144901,0.00011,2]
[334594749,1723291846372,-1193.28658012,0.00011,2]
[334594750,1723291846383,-1216.07779227,0.00011,2]
[334594753,1723291893498,550.0,0.0001,2]
[334594754,1723291896480,650.32,8.94e-05,2]
[334594755,1723291997287,500.0,0.00026384,120]
[334594759,1723292080427,151.0,8.94e-05,2]
[334594760,1723292081662,151.0,8.94e-05,2]
[334594761,1723292082003,151.0,8.94e-05,2]
[334594762,1723292082340,151.0,8.94e-05,2]
[334594763,1723292082667,151.0,8.94e-05,2]
[334594764,1723292082987,151.0,8.94e-05,2]
[334594765,1723292083315,200.0,8.94e-05,2]
[334594767,1723292365357,617.8,8.219e-05,2]
[334594768,1723292408257,2000.0,0.00025,60]
[334594770,1723292576514,320.0,9.988e-05,2]
[334594771,1723292595395,-23890.0,0.00010046,2]
[334594772,1723292595417,-250.0,0.0001006,2]
[334594773,1723292595444,-559.19,0.00010065,2]
[334594774,1723292595465,-2152.26,0.00010086,2]
[334594775,1723292595486,-10000.0,0.00010143,2]
[334594776,1723292595507,-1000.0,0.00010153,2]
[334594777,1723292595527,-1368.7,0.00010185,2]
[334594778,1723292595548,-500.0,0.00010185,2]
[334594779,1723292595569,-2774.99,0.0001025,2]
[334594780,1723292595591,-153.52,0.00010293,2]
[334594781,1723292595614,-200.0,0.00010332,2]
[334594782,1723292595636,-179.69,0.0001044,2]
[334594783,1723292595659,-617.8,0.00010482,2]
[334594784,1723292595680,-150.0,0.00010485,2]
[334594785,1723292595700,-152.74,0.00010486,2]
[334594786,1723292595720,-155.0,0.00010836,2]
[334594787,1723292595741,-2500.0,0.000109,2]
[334594788,1723292595763,-13869.34084235,0.000109,2]
[334594789,1723292595785,-273.42530109,0.000109,2]
[334594790,1723292595990,-351.72445434,0.000109,2]
[334594791,1723292596013,-6087.9038041,0.000109,2]
[334594792,1723292596037,-140323.71559812,0.00011,2]
[334594794,1723292715924,150.66623924,9.888e-05,2]
[334594797,1723292928703,556.02,8.844e-05,2]
[334594806,1723293029872,1000.0,0.00022,120]
[334594814,1723293032132,-200.0,0.00010625,2]
[334594817,1723293032142,-482.30514493,0.0001072,2]
[334594820,1723293032151,-2872.03035,0.0001089,2]
[334594823,1723293032160,-12482.40675816,0.000109,2]
[334594825,1723293032169,-4058.60253606,0.000109,2]
[334594827,1723293032178,-351.72445434,0.000109,2]
[334594829,1723293032187,-239.24713841,0.000109,2]
[334594830,1723293032198,-150.0,0.00010996,2]
[334594833,1723293032207,-8336.91249144,0.00010997,2]
[334594834,1723293032217,-211.52985921,0.00010999,2]
[334594836,1723293032227,-423.87164968,0.00010999,2]
[334594838,1723293032236,-29312.20054201,0.00011,2]
[334594841,1723293032248,-344623.26171535,0.00011,2]
[334594843,1723293032262,-370.19261992,0.00011,2]
[334594845,1723293032273,-521.97670531,0.00011,2]
[334594848,1723293032284,-448.6520833,0.00011,2]
[334594850,1723293032295,-2763.18092288,0.00011,2]
[334594853,1723293032317,-699.97572259,0.00011,2]
[334594855,1723293032328,-28976.50713518,0.00011,2]
[334594857,1723293032339,-61796.53193529,0.00011,2]
[334594858,1723293032350,-1699.49722843,0.00011,2]
[334594859,1723293032361,-2219.57379425,0.00011,2]
[334594860,1723293032405,-821.84153478,0.00011,2]
[334594861,1723293032416,-468.09747962,0.00011,2]
[334594862,1723293032438,-1506.92253109,0.00011,2]
[334594863,1723293032454,-3603.53690901,0.00011,2]
[334594864,1723293032467,-26919.95610758,0.00011,2]
[334594865,1723293032478,-1062.65487109,0.00011,2]
[334594867,1723293032489,-918.39926448,0.00011,2]
[334594870,1723293032503,-1245.568807,0.00011,2]
[334594905,1723293038364,-1324.892,0.000109,2]
[334594906,1723293038374,-10040.87772362,0.00011,2]
[334594907,1723293038426,-853.08727691,0.00011,2]
[334594908,1723293038438,-3879.31648734,0.00011,2]
[334594909,1723293038659,-0.78694758,0.00011,2]
[334594910,1723293038693,-4677.82886025,0.00011,2]
[334594911,1723293038707,-451.57864314,0.00011,2]
[334594912,1723293038718,-1765.0,0.00011,2]
[334594913,1723293038730,-955.97027776,0.00011,2]
[334594914,1723293038741,-4936.4916975,0.00011,2]
[334594915,1723293038760,-3295.73985537,0.00011,2]
[334594916,1723293038780,-880.12,0.00011,2]
[334594917,1723293038796,-941.43031319,0.00011,2]
[334595064,1723293040305,-453.8784,0.00011,2]
[334595071,1723293040366,-928.3020743,0.00011,2]
[334595073,1723293040379,-530.86535505,0.00011,2]
[334595085,1723293040485,-82841.44241204,0.00011,2]
[334595207,1723293041812,-1418.12470402,0.00011,2]
[334595209,1723293041824,-300.0,0.00011,2]
[334595212,1723293041837,-4130.24694756,0.00011,2]
[334595214,1723293041849,-1819.99999776,0.00011,2]
[334595216,1723293041861,-989.22878096,0.00011,2]
[334595218,1723293041874,-952.47687904,0.00011,2]
[334595366,1723293043411,-363.31855687,0.00010999,2]
[334595367,1723293043423,-205.59336245,0.00011,2]
[334595368,1723293043440,-36743.81833077,0.00011,2]
[334595369,1723293043452,-416050.62772871,0.00011,2]
[334595370,1723293043473,-405.466,0.00011,2]
[334595465,1723293044505,-294.38089567,0.00011,2]
[334595467,1723293044521,-5350.19999999,0.00011,2]
[334595628,1723293046344,-3498.87103814,0.00011,2]
[334595635,1723293046457,-269.24,0.00011,2]
[334595636,1723293046517,-669.58337309,0.00011,2]
[334595637,1723293046577,-501.21592484,0.00011,2]
[334595794,1723293058147,1000.0,0.00026,120]
[334595797,1723293289103,500.0,0.00027,120]
[334595798,1723293307041,500.0,0.00027,120]
[334595799,1723293402768,300.0,0.00027,120]
[334595800,1723293476260,528.21,8.74e-05,2]
[334595801,1723293542365,200.0,0.00027,120]
[334595802,1723293554067,200.0,0.00027,120]
[334595803,1723293613535,4797.05,0.0001,2]
[334595805,1723293666154,10000.0,0.00027,120]
[334595807,1723293721160,550.0,0.0001,2]
[334595808,1723293722166,7122.11009039,0.00027,120]
[334595813,1723293935535,501.79,8.482e-05,2]
[334595874,1723294232380,-531.0316463,0.00010281,2]
[334595875,1723294232390,-155.02620649,0.00010281,2]
[334595876,1723294232400,-200.01,0.00010346,2]
[334595877,1723294232410,-160.0,0.00010442,2]
[334595878,1723294232419,-824.49360169,0.00010594,2]
[334595879,1723294232428,-230.166172,0.00010594,2]
[334595880,1723294232438,-501.79,0.00010746,2]
[334595881,1723294232448,-183.01,0.00010825,2]
[334595882,1723294232457,-840.0,0.00010831,2]
[334595883,1723294232466,-150.0,0.00010877,2]
[334595884,1723294232475,-183.01,0.00010879,2]
[334595885,1723294232484,-2393.35863,0.0001089,2]
[334595886,1723294232493,-300.0,0.00010899,2]
[334595887,1723294232503,-4635.6044,0.000109,2]
[334595888,1723294232512,-3110.4897,0.000109,2]
[334595889,1723294232521,-11234.16608229,0.000109,2]
[334595890,1723294232530,-209.3412461,0.000109,2]
[334595891,1723294232539,-336.29837452,0.000109,2]
[334595892,1723294232548,-2705.73502404,0.000109,2]
[334595893,1723294232558,-173.33,0.00010991,2]
[334595894,1723294232567,-7865.66380878,0.00010997,2]
[334595895,1723294232578,-311.41590589,0.00010999,2]
[334595896,1723294232587,-73471.51446697,0.00011,2]
[334595897,1723294232614,-2879.4795,0.00011,2]
[334595898,1723294232625,-787.72537109,0.00011,2]
[334595899,1723294232635,-753.09403611,0.00011,2]
[334595900,1723294232646,-445.10286169,0.00011,2]
[334595901,1723294232657,-293.43812873,0.00011,2]
[334595902,1723294232668,-824.49360169,0.00011,2]
[334595903,1723294232679,-1155.72649835,0.00011,2]
[334595910,1723294238622,-1925.36,0.00011,2]
[334595911,1723294238718,-57661.30367194,0.00011,2]
[334595912,1723294238775,-11947.99984461,0.00011,2]
[334596072,1723294240449,-478.75263346,0.00011,2]
[334596079,1723294240506,-290.523,0.00011,2]
[334596098,1723294241776,-495429.68212436,0.00011,2]
[334596100,1723294241786,-4561726.28359136,0.00011,2]
[334596102,1723294241799,-1044.795,0.00011,2]
[334596104,1723294241814,-440.96864,0.00011,2]
[334596106,1723294241825,-1121.2213578,0.00011,2]
[334596146,1723294243506,-9125.33051296,0.00011,2]
[334596203,1723294244722,-500.57827625,0.00011,2]
[334596207,1723294246654,-379.71008372,0.00011,2]
[334596208,1723294246666,-794.89183922,0.00011,2]
[334596209,1723294246678,-968.67446602,0.00011,2]
[334596210,1723294246690,-218500.57212618,0.00011,2]
[334596211,1723294246710,-6339.61331955,0.00011,2]
[334596212,1723294246722,-658.88808244,0.00011,2]
[334596213,1723294246733,-769.05650803,0.00011,2]
[334596214,1723294246744,-684.36699985,0.00011,2]
[334596215,1723294246772,-2089.86470127,0.00011,2]
[334596216,1723294246783,-383.87296915,0.00011,2]
[334596217,1723294246794,-677.99999947,0.00011,2]
[334596218,1723294246806,-4788.38967729,0.00011,2]
[334596219,1723294246817,-1458.83968283,0.00011,2]
[334596220,1723294246831,-409.14193754,0.00011,2]
[334596221,1723294246852,-1529.65936875,0.00011,2]
[334596222,1723294246864,-1033.05017563,0.00011,2]
[334596223,1723294246875,-1636.31814337,0.00011,2]
[334596224,1723294246887,-2306.87815915,0.00011,2]
[334596225,1723294246898,-3412.50316229,0.00011,2]
[334596226,1723294246909,-4666.27831828,0.00011,2]
[334596227,1723294246920,-531.0,0.00011,2]
[334596228,1723294246931,-3348.64340883,0.00011,2]
[334596229,1723294246943,-6324.81784563,0.00011,2]
[334596230,1723294246954,-432.5,0.00011,2]
[334596231,1723294246965,-6649.48547676,0.00011,2]
[334596232,1723294246976,-295.25514135,0.00011,2]
[334596233,1723294246993,-2479.97084612,0.00011,2]
[334596491,1723294443751,173.04,8.496e-05,2]
[334596492,1723294454760,451.61,8.763e-05,2]
[334596501,1723294629106,207.01824844,0.00010945,30]
[334596502,1723294633109,150.5,0.00017798,120]
[334596503,1723294633362,403.0,0.00017798,120]
[334596504,1723294633602,150.5,0.00017788,120]
[334596505,1723294633827,403.0,0.00017788,120]
[334596506,1723294634037,150.5,0.00017778,120]
[334596507,1723294634295,403.0,0.00017778,120]
[334596508,1723294634506,150.5,0.0001999,120]
[334596509,1723294634753,403.0,0.0001999,120]
[334596510,1723294634981,186.91,0.0001998,120]
[334596511,1723294635235,403.0,0.0001998,120]
[334596512,1723294635695,403.0,0.0001997,120]
[334596513,1723294636156,403.0,0.0002329,120]
[334596514,1723294636662,403.0,0.0002328,120]
[334596515,1723294637118,403.0,0.0002489,120]
[334596516,1723294637610,411.51,0.0002488,120]
[334596592,1723294990141,429.02,8.238e-05,2]
[334596593,1723294993450,150.5,0.000178,120]
[334596594,1723294993926,150.5,0.0001779,120]
[334596595,1723294994382,150.5,0.0001778,120]
[334596596,1723294994864,150.5,0.00021906,120]
[334596597,1723294995360,150.5,0.00021896,120]
[334596598,1723294995840,150.5,0.00021886,120]
[334596643,1723295431660,-173.35,0.00010043,2]
[334596644,1723295431669,-160.0,0.00010091,2]
[334596645,1723295431679,-872.0,0.0001017,2]
[334596646,1723295431690,-2500.0,0.00010412,2]
[334596647,1723295431700,-330.66,0.00010637,2]
[334596648,1723295431712,-150.0,0.00010727,2]
[334596649,1723295431721,-150.0,0.00010751,2]
[334596650,1723295431732,-276.11,0.00010846,2]
[334596651,1723295431742,-259.79108391,0.00010846,2]
[334596652,1723295431751,-150.0,0.00010876,2]
[334596653,1723295431763,-150.0,0.00010893,2]
[334596654,1723295431774,-461.1654,0.000109,2]
[334596655,1723295431783,-2206.74701609,0.000109,2]
[334596656,1723295431795,-5243.29172088,0.000109,2]
[334596657,1723295431806,-4660.7107371,0.000109,2]
[334596658,1723295431816,-835.17,0.000109,2]
[334596659,1723295431826,-183.17359039,0.000109,2]
[334596660,1723295431836,-483.3,0.000109,2]
[334596662,1723295431846,-224.19891636,0.000109,2]
[334596664,1723295431855,-150.0,0.00010903,2]
[334596666,1723295431866,-150.0,0.0001093,2]
[334596668,1723295431876,-150.0,0.00010933,2]
[334596670,1723295431886,-150.0,0.0001094,2]
[334596672,1723295431895,-200.0,0.00010973,2]
[334596674,1723295431904,-200.0,0.00010973,2]
[334596676,1723295431913,-150.0,0.00010979,2]
[334596679,1723295431923,-2892.96949473,0.00010997,2]
[334596682,1723295431932,-266.92791933,0.00010999,2]
[334596685,1723295431942,-99841.73187875,0.00011,2]
[334596688,1723295431954,-300.86084092,0.00011,2]
[334596690,1723295431964,-2750.55437931,0.00011,2]
[334596692,1723295431974,-681.39069848,0.00011,2]
[334596706,1723295432324,-2186.65209013,0.00011,2]
[334596707,1723295432336,-11974.31523528,0.00011,2]
[334596708,1723295432356,-428.45648914,0.00011,2]
[334596709,1723295432368,-732.16651249,0.00011,2]
[334596710,1723295432384,-201036.08089083,0.00011,2]
[334596711,1723295432398,-1105.11416759,0.00011,2]
[334596712,1723295432666,407.56,8.406e-05,2]
[334596716,1723295437675,-407.56,0.0001067,2]
[334596717,1723295437686,-228.79535943,0.00010999,2]
[334596718,1723295437695,-908.64464057,0.00011,2]
[334596719,1723295437732,-2380.84375002,0.00011,2]
[334596720,1723295437742,-17808.7801968,0.00011,2]
[334596813,1723295442627,-854.55749319,0.00011,2]
[334596814,1723295442683,-10961.92493254,0.00011,2]
[334596818,1723295443763,-411.7493109,0.00011,2]
[334596819,1723295443798,-10307.660714,0.00011,2]
[334596820,1723295445733,-4407.42715654,0.00011,2]
[334596821,1723295445792,-717.12394233,0.00011,2]
[334596822,1723295445851,-2724.06463535,0.00011,2]
[334596823,1723295445862,-451.34,0.00011,2]
[334596824,1723295445910,-553.22115253,0.00011,2]
[334596825,1723295445922,-1195.57080635,0.00011,2]
[334596826,1723295445969,-382.51727014,0.00011,2]
[334596827,1723295445980,-418.67989746,0.00011,2]
[334596840,1723295549806,550.0,0.0001,2]
[334596842,1723295877000,421.53,8.502e-05,2]
[334596844,1723296258111,6781.1673469,8.502e-05,2]
[334596845,1723296258133,20000.0,8.502e-05,2]
[334596846,1723296258156,20000.0,8.502e-05,2]
[334596847,1723296258181,20000.0,8.502e-05,2]
[334596848,1723296258204,7374.40292747,8.502e-05,2]
[334596871,1723296369858,400.45,8.219e-05,2]
[334596872,1723296379906,440.84910422,9.915e-05,2]
[334596895,1723296480914,2310.59329428,0.0001,2]
[334596896,1723296506440,1038.99137073,0.00012,30]
[334596897,1723296513663,25004.15608,0.00027,120]
[334596922,1723296631679,-697.6,0.00010007,2]
[334596926,1723296631688,-299.2,0.00010007,2]
[334596929,1723296631698,-220.73,0.00010015,2]